Cogmind - Beta 13 @@@ ROGUE MODE // 2024.04.16 @ 19:14:47 Player: Gabe+Kate4EVR Result: Destroyed by S-10 Pest with Light Assault Rifle Performance ------------- Evolutions (0) 0 Regions Visited (3) 600 Robots Destroyed (27) 135 Value Destroyed (596) 596 Prototype IDs (12) 240 Alien Tech Used (0) 0 Bonus (-116) -116 TOTAL SCORE: 1455 Bonus ------- Friendly Fire -116 Cogmind --------- Core Integrity 0/250 Matter 300/300 Energy 105/125 System Corruption 0% Temperature Cool (0) Movement Treading (160) Location -10/Subcaves Parts ------- > --- POWER (1) -------- Light Ion Engine > --- PROPULSION (2) --- Spiked Treads > --- UTILITY (2) ------ Makeshift Light Armor Plating V3-11A's Pendant > --- WEAPON (2) ------- Powered Cannon > --- INVENTORY (5) ---- Subdweller Power Source Thief Drone Bay (0/3) Cobbler Unit Dirty Datajack (20) Peak State ------------ > --- POWER ------------ Light Ion Engine Subdweller Power Source > --- PROPULSION ------- Spiked Treads Spiked Treads > --- UTILITY ---------- Makeshift Light Armor Plating Thief Drone Bay > --- WEAPON ----------- Powered Cannon > --- INVENTORY -------- Subdweller Power Source Cobbler Unit Slug Cannon [Rating: 33] Favorites ----------- Power Light Ion Engine Engine Light Ion Engine Propulsion Spiked Treads Treads Spiked Treads Leg Aluminum Leg Wheel Wheel Utility Makeshift Light Armor Plating Device Subdweller Optics Storage Small Storage Unit Protection Makeshift Light Armor Plating Weapon Powered Cannon Energy Cannon Powered Cannon Ballistic Gun Light Assault Rifle Build | -11 -10 -10 -10 ------- Run | Yrd Mat Min Sub Slots Evolved . | . . . . Power . | . . . . Propulsion . | . . . . Utility . | . . . . Weapon . | . . . . Parts Attached 38 | 6 . 5 27 Power 10 | 1 . 3 6 Engine 10 | 1 . 3 6 Core . | . . . . Reactor . | . . . . Propulsion 8 | 2 . . 6 Treads 2 | . . . 2 Leg 2 | 2 . . . Wheel 4 | . . . 4 Hover . | . . . . Flight . | . . . . Utility 11 | 1 . 2 8 Device 7 | . . 1 6 Storage 1 | 1 . . . Processor . | . . . . Hackware . | . . . . Protection 3 | . . 1 2 Artifact . | . . . . Weapon 9 | 2 . . 7 Energy Gun . | . . . . Energy Cannon 2 | . . . 2 Ballistic Gun 7 | 2 . . 5 Ballistic Cannon . | . . . . Launcher . | . . . . Special Weapon . | . . . . Impact Weapon . | . . . . Slashing Weapon . | . . . . Piercing Weapon . | . . . . Special Melee Weapon . | . . . . Unidentified Prototypes 2 | . . 1 1 Parts Lost 3 | . . . 3 Power . | . . . . Propulsion 2 | . . . 2 Utility 1 | . . . 1 Weapon . | . . . . Highest Loss Streak 1 | . . . 1 To Critical Strikes . | . . . . Average Slot Usage (%) 88 | . 85 99 86 Engine 15 | . 14 14 15 Treads 14 | . . . 17 Leg 11 | . 28 28 7 Wheel 1 | . . . 1 Device 11 | . . 1 14 Storage 2 | . 14 14 . Protection 9 | . . 12 9 Energy Cannon 7 | . . . 9 Ballistic Gun 12 | . 28 28 9 Naked Turns . | . . . . Heaviest Build 25 | 11 11 15 25 Greatest Support 40 | 20 20 20 40 Greatest Overweight (x) 1 | . . . 1 Average Overweight (x) . | . . . . Largest Inventory Capacity 8 | 8 8 8 8 Average Capacity 5 | 6 8 8 5 Most Carried 8 | 2 2 6 8 Average Carried 4 | . 2 5 4 Final Capacity 8 | 8 8 8 5 Final Carried 6 | 2 2 6 5 Class Distribution -------------------- 84% | Mutant 12% | Derelict-Mutant Dominant Class ---------------- Mutant | -10/Materials Mutant | -10/Mines Mutant | -10/Subcaves Resources | -11 -10 -10 -10 ----------- Run | Yrd Mat Min Sub Matter Collected 1094 | 212 . 137 745 Remotely . | . . . . Salvage Created 863 | . . 144 719 Parts 61 | . . 17 44 Haulers Intercepted . | . . . . Recyclers Shooed . | . . . . Parts Field Recycled . | . . . . Retrieved Matter . | . . . . Parts Self-Destructed 15 | . . . 15 Prevented . | . . . . Kills | -11 -10 -10 -10 ------- Run | Yrd Mat Min Sub Combat Hostiles Destroyed 26 | . . 6 20 Guns 15 | . . 6 9 Cannons 9 | . . . 9 Classes Destroyed 5 | . . 2 3 Recycler 1 | . . 1 . Swarmer 15 | . . 6 9 Artisan 2 | . . . 2 Cobbler 1 | . . . 1 Subdweller 11 | . . . 11 Best Kill Streak 4 | . . 4 3 Combat Bots Only 3 | . . 3 3 Max Kills in Single Turn 1 | . . 1 1 Gunslinging . | . . . . Exploded . | . . . . Melee . | . . . . Uniques/NPCs Destroyed . | . . . . Combat | -11 -10 -10 -10 -------- Run | Yrd Mat Min Sub Hostile Shots Fired 155 | . . 31 124 Missed 43 | . . 6 37 Damage Taken 1348 | . . 204 1144 Core 257 | . . 31 226 Absorbed by Shields . | . . . . Redirected to Shielding 31 | . . 15 16 Core Remaining (%) 100 | 100 . . . Volleys Fired 115 | . . 15 100 Largest 2 | . . 2 2 Hottest 108 | . . 40 108 Shots Fired 170 | . . 30 140 Gun 98 | . . 30 68 Cannon 72 | . . . 72 Launcher . | . . . . Special . | . . . . Kinetic 98 | . . 30 68 Thermal 72 | . . . 72 Explosive . | . . . . Electromagnetic . | . . . . Robot Hit Streak 11 | . . 3 11 Robot Miss Streak 6 | . . 4 6 Penetration Max . | . . . . Secondary Targets 2 | . . 1 1 Max Gunslinging Chain 1 | . . 1 1 Shots Hit Robots 71 | . . 13 58 Core Hits 34 | . . 9 25 Critical Kills 3 | . . . 3 Critical Parts Destroyed . | . . . . Critical Strikes 3 | . . . 3 Meltdown 3 | . . . 3 Melee Attacks . | . . . . Impact . | . . . . Slashing . | . . . . Piercing . | . . . . Sneak Attacks . | . . . . Combat Hostiles . | . . . . Follow-up Attacks . | . . . . Damage Inflicted 1885 | . . 136 1749 Guns 731 | . . 136 595 Cannons 1154 | . . . 1154 Explosions . | . . . . Melee . | . . . . Ramming . | . . . . Kinetic 731 | . . 136 595 Thermal 1154 | . . . 1154 Explosive . | . . . . Electromagnetic . | . . . . Impact . | . . . . Slashing . | . . . . Piercing . | . . . . Highest Corruption . | . . . . Average Corruption . | . . . . Corruption Purged . | . . . . Corruption Blocked . | . . . . Overload Shots . | . . . . Overflow Damage 38 | . . . 38 Projectiles 38 | . . . 38 Explosions . | . . . . Melee . | . . . . Knockbacks . | . . . . Impact . | . . . . Kinetic . | . . . . Secondary . | . . . . Self-Inflicted Damage . | . . . . Shots . | . . . . Rammed . | . . . . Targets Rammed . | . . . . Kicked . | . . . . Crushed . | . . . . Highest Temperature 233 | . . . 233 Average Temperature 22 | . . . 22 Received Heat Transfer 400 | . . . 400 Siege Activations . | . . . . Robots Corrupted . | . . . . Combat Hostiles . | . . . . Parts Fried . | . . . . Impact Corruptions . | . . . . Robots Melted 3 | . . . 3 Combat Hostiles 2 | . . . 2 Parts Melted 4 | . . . 4 Heat Transferred 148 | . . . 148 Parts Sabotaged . | . . . . Parts Stolen . | . . . . Parts Stripped . | . . . . Power Chain Reactions . | . . . . Alert | -11 -10 -10 -10 ------- Run | Yrd Mat Min Sub Peak Influence 180 | . 15 180 . Initial 5 | . . 5 . Average 41 | . 2 48 . Maximum Alert Level . | . . . . Low Security (%) 100 | 100 100 100 . Level 1 . | . . . . Level 2 . | . . . . Level 3 . | . . . . Level 4 . | . . . . Level 5 . | . . . . High Security . | . . . . Max Security . | . . . . Squads Dispatched 1 | . 1 . . Investigation . | . . . . Extermination . | . . . . Reinforcement 1 | . 1 . . Assault . | . . . . Garrison . | . . . . Intercept . | . . . . Searches Triggered . | . . . . Construction Impeded . | . . . . Haulers Reinforced . | . . . . Active Scanning Responses . | . . . . Cargo Convoy Interrupts . | . . . . Stealth | -11 -10 -10 -10 --------- Run | Yrd Mat Min Sub Distress Signals . | . . . . Communications Jammed . | . . . . Distress Signals . | . . . . Times Spotted 35 | . 2 8 25 Peak Tracking Total 5 | . 3 3 5 Tactical Retreats 2 | . . 1 1 Traps | -11 -10 -10 -10 ------- Run | Yrd Mat Min Sub Traps Triggered 2 | . . . 2 Indirectly . | . . . . Trap Hack Attempts . | . . . . Triggered . | . . . . Disarmed . | . . . . Reprogrammed . | . . . . Reused . | . . . . Traps Extracted . | . . . . Installed . | . . . . Triggered . | . . . . Machines | -11 -10 -10 -10 ---------- Run | Yrd Mat Min Sub Machines Disabled 2 | . . . 2 Max in Single Turn 1 | . . . 1 Machines Repaired . | . . . . Machines Dismantled . | . . . . Machines Sabotaged . | . . . . Overloaded Fab Kills . | . . . . Hacking | -11 -10 -10 -10 --------- Run | Yrd Mat Min Sub Machines Accessed 5 | . 2 1 2 Terminals 2 | . 2 . . Fabricators . | . . . . Repair Stations . | . . . . Recycling Units . | . . . . Scanalyzers . | . . . . Garrison Access . | . . . . Total Hacks 18 | . 4 1 13 Successful 14 | . . 1 13 Failed 4 | . 4 . . Catastrophic 2 | . 2 . . Database Lockouts . | . . . . Manual 3 | . 3 . . Terminals 4 | . 4 . . Fabricators . | . . . . Repair Stations . | . . . . Recycling Units . | . . . . Scanalyzers . | . . . . Garrison Access . | . . . . Terminal Hacks 14 | . . 1 13 Record 12 | . . . 12 Open Door 1 | . . 1 . Derelict Proto ID Bank 1 | . . . 1 Fabricator Hacks . | . . . . Repair Station Hacks . | . . . . Recycling Unit Hacks . | . . . . Scanalyzer . | . . . . Garrison Access Hacks . | . . . . Unauthorized Hacks . | . . . . Terminals . | . . . . Fabricators . | . . . . Repair Stations . | . . . . Recycling Units . | . . . . Scanalyzers . | . . . . Garrison Access . | . . . . Data Cores Recovered . | . . . . Used . | . . . . Hacking Detections 2 | . 2 . . Full Trace Events 1 | . 1 . . Feedback Events . | . . . . Feedback Blocked . | . . . . Robot Schematics Acquired . | . . . . Robots Built . | . . . . Authchips . | . . . . Time . | . . . . Total Robot Build Rating . | . . . . Part Schematics Acquired . | . . . . Parts Built . | . . . . Authchips . | . . . . Time . | . . . . Total Part Build Rating . | . . . . Parts Repaired . | . . . . Time . | . . . . Parts Recycled . | . . . . Recycled Matter . | . . . . Retrieved Matter . | . . . . Retrieved Components . | . . . . Parts Scanalyzed . | . . . . Part Schematics Acquired . | . . . . Parts Damaged . | . . . . Bothacking | -11 -10 -10 -10 ------------ Run | Yrd Mat Min Sub Used RIF Installer . | . . . . Robots Hacked . | . . . . Non-combat . | . . . . Combat . | . . . . Robot Hacks Applied . | . . . . Relay Couplers Released . | . . . . Fabnet Peak Effective % . | . . . . Robots Rewired . | . . . . Allies Hacked . | . . . . Hacks Repelled . | . . . . Allies | -11 -10 -10 -10 -------- Run | Yrd Mat Min Sub Total Allies 2 | . . . 2 Largest Group 1 | . . . 1 Highest-Rated Group 19 | . . . 19 Highest-Rated Ally 19 | . . . 19 Total Orders . | . . . . Ally Attacks 1 | . . . 1 Total Damage . | . . . . Kills . | . . . . Allies Corrupted . | . . . . Allies Melted . | . . . . Intel | -11 -10 -10 -10 ------- Run | Yrd Mat Min Sub Robot Analysis Total . | . . . . Derelict Logs Recovered 2 | . . 1 1 Drone Launches 3 | . . . 3 Drone Recoveries . | . . . . Exploration | -11 -10 -10 -10 ------------- Run | Yrd Mat Min Sub Turns Passed 4519 | 74 56 797 3592 Spaces Moved 2242 | 54 47 309 1832 Core 2 | 2 . . . Treads 1263 | . . . 1263 Legs 738 | 52 47 309 330 Wheels 239 | . . . 239 Hover . | . . . . Flight . | . . . . Fastest Speed 50 | 50 120 120 80 Average Speed 141 | 117 120 120 146 Slowest Speed 190 | 120 120 120 190 Overloaded Moves . | . . . . Propulsion Burnouts . | . . . . Robots Hopped . | . . . . Cave-ins Triggered . | . . . . Exploration Rate (%) 47 | 5 14 74 95 Regions Visited 3 Branch Regions 2 Pre-discovered Areas 3 | . . . 3 Known Exits Taken . | . . . . Unknown Exits Taken 3 | 1 1 1 . Scrap Searched 13 | . . 1 12 Spaces Dug 5 | . . . 5 Terrain Destroyed 15 | . . . 15 Melee . | . . . . Projectile 15 | . . . 15 AOE . | . . . . Terrain Rammed . | . . . . Walls Destroyed . | . . . . Machines Disabled . | . . . . Actions | -11 -10 -10 -10 --------- Run | Yrd Mat Min Sub Total 3432 | 61 46 706 2619 Wait 1000 | . . 377 623 Move 2239 | 53 46 308 1832 Hop . | . . . . Pick Up 7 | 2 . . 5 Fast Attach 23 | 6 . 2 15 Attach 3 | . . . 3 Detach 4 | . . 1 3 Swap 12 | . . 3 9 Drop 27 | . . . 27 Fire 115 | . . 15 100 Melee . | . . . . Ram . | . . . . Kick . | . . . . Crush . | . . . . Escape Stasis . | . . . . Rewire 2 | . . . 2 Trap . | . . . . Miscellaneous . | . . . . Route ------- -11/Scrapyard -10/Materials -10/Mines -10/Subcaves (discovered 2 exits: *Mat x2) History --------- Turn | Location | Event 5 | -11/Scrapyard | Discovered new exit (range 16) 75 | -11/Scrapyard | Entered Materials 125 | -10/Materials | Discovered new exit (range 6) 131 | -10/Materials | Entered Mines 153 | -10/Mines | Found the Drone Emporium 159 | -10/Mines | Found Prototype Device 159 | -10/Mines | Identified Thief Drone Bay 315 | -10/Mines | Build established: Mutant 407 | -10/Mines | Learned Materials interactive machine intel 908 | -10/Mines | Discovered new exit (range 5) 928 | -10/Mines | Entered Subcaves 1684 | -10/Subcaves | Shifting Twisted Machinery released Sub. Beam Cannon 1744 | -10/Subcaves | Identified exit to Materials 2201 | -10/Subcaves | Core integrity fell below 50% 2229 | -10/Subcaves | Visited 4L-MR0's lab 2278 | -10/Subcaves | Found Powered Cannon 2280 | -10/Subcaves | Attached Powered Cannon, gained temporary slot: Power 2467 | -10/Subcaves | Disturbed a concealed Subdweller 2502 | -10/Subcaves | Build established: Derelict-Mutant 2875 | -10/Subcaves | Discovered exit to Materials (range 8) 3009 | -10/Subcaves | Build established: Mutant 3049 | -10/Subcaves | Shifting Twisted Machinery released Sub. Beam Cannon 3076 | -10/Subcaves | Shifting Twisted Machinery released Sub. Machine Gun 3102 | -10/Subcaves | Learned location of Zion (-6) 3102 | -10/Subcaves | Met a Zionite searching for "candidates" 3188 | -10/Subcaves | Ambushed by angry Subdweller bent on revenge 3652 | -10/Subcaves | Visited triangular shrine 3663 | -10/Subcaves | Found Prototype Device 3663 | -10/Subcaves | Identified V3-11A's Pendant 3668 | -10/Subcaves | Befriended Subdweller 3739 | -10/Subcaves | Approached by friendly Subdweller 3855 | -10/Subcaves | Visited Clippyterm 3860 | -10/Subcaves | Learned location of Deep Caves (-6) 3860 | -10/Subcaves | Learned location of Extension (-4) 3925 | -10/Subcaves | Shifting Twisted Machinery released Battle Cannon 3937 | -10/Subcaves | Shifting Twisted Machinery released Sub. Optics 4256 | -10/Subcaves | A swath of the cavern ceiling suddenly collapsed 4489 | -10/Subcaves | Core integrity fell below 20% 4520 | -10/Subcaves | Destroyed by S-10 Pest with Light Assault Rifle Last Messages --------------- It looks like you're planning to spring a Derelict or three, would you like help? World map updated: -4/Extension. >>Record! "Permadeath" It looks like you're defining "roguelike," quit while you're ahead. Please. Battle Cannon falls loose from the Twisted Machinery. Sub. Optics falls loose from the Twisted Machinery. A swath of the cavern ceiling suddenly collapses. 04409_ PG-6FQ(R) affixes Scrap Shield Fragment to Scrap Shield. 04484_ PG-6FQ(R) destroyed. 04486_ S-10 Pest destroyed. 04495_ Destroyed Lgt. Assault Rifle. 04495_ S-10 Pest destroyed. 04505_ Spk. Treads destroyed. 04507_ S-10 Pest destroyed. 04510_ Flight Unit fries itself beyond repair. 04515_ Lgt. Ion Engine fries itself beyond repair. 04516_ Flight Unit fries itself beyond repair. [Achievement: Tester] Map ----- +----------------------------------------------------+ | # #?## "##???## #####?# #?? | | ## ## ## & ^##??# ### ### | | ## ######## [ #### ### ## | | ### #??????# "" ## #?#### # | | # ##?## ????# ""# ### #???# ## | | ## #???# ### "#### ##?# #??## ## | | ?## #???# #?### ##??# #?## #### ## | | ## ## ### #??# #???# #?# ## | | #???# #??## ####?# ### | | #??##### #?## ##??### ### | | # # ####??????###?# #### # | | ######?##?????????????## ## | | #####??????????????????#### | | #?????????????????????## ^ ## ## | | # ##??????????????????????## ###### ### | | ## ##?????????????????????### #???# #?## | | ## #?????????????????????# #??# #??# | | # ##?????????????????????# #?# #??# | | # "#?????????????????????## #### #?##### #??# | | ## "#??????????????????????####??####???######?## | | ?# ##?????????????????????????????????? """?#### | | ## "#?????????????????????###????????? "?# #" | | "#????????????????????## ##??????? "?# | | "#????????????????????# #?????? ""?# | | "###???????????????????## ##???? ???# | | "##?????????????????## ?#@ ##### ?????# | | ####???????????????# "##< ;#[%*#???????# #" | | ""##???????????????# ;#???????#### | | # "" #??????????????#$ #$#" %!s% ##???????# | | ##""##??????????????#??### ]%[ ##????????# | | ??###????????????????????## ! ##????????## | | ??????????????????????????## ## #?????????# " | | ??????????????????????????## #?##########?## # | | ?????????????????????????## ### ## #??### | | ?????????????????????????# ## ##??## | | ?????????????????????????# # ## #?## | | ?????????????????????????## ## # ### | | ??????????????????????????## ## #### | | ???????????????????????????###### # # | | ???????????????????????????###### ## ## | | ??????????????????????????## ## #### ## | | ?????????????????????????## ## #####?# # | | ????????????????????????## ######?????# ## | | ????????????????????????# ##??????????######? | | ????????????????????????# #?????????????????? | | ????????????????????????## #?????????????????? | | ?????????????????????????## #?????????????????? | | ??????????????????????????## #?????????????????? | | ???????????????????????????## ##?????????????????? | | ????????????????????????????###??????????????????? | +----------------------------------------------------+ Best States ------------- Heat Dissipation 25 Coolant Potential 50 Energy Generation 25 Energy Capacity 300 Matter Stores 300 Matter Capacity 300 Sight Range 21 Terrain Scan Density 10 Armor Coverage 100 Propulsion Shielding 33 Evasion (%) 55 Recoil Reduction 2 Item Schematics ----------------- None Robot Schematics ------------------ None Fabricated ------------ Nothing Alien Tech Used ----------------- None Achievements -------------- Tester Challenges ------------ None Game ------ Seed RelayTargetLaser Manual? 0 Play Time 00:22:43 Cumulative 95.9 hours Start 2024.04.15 @ 21:01:06 End 2024.04.16 @ 19:14:47 Sessions 1 Manual Loads 0 Difficulty Rogue Special Mode None Game No. 192 Rogue 192 Adventurer 0 Explorer 0 Win Type - Total 0 Types 0/0/0/0/0/0/0/0/0 Lore% 31 Gallery% 50 Achievement% 35 Wizard Run 0 Options --------- Layout 0 ASCII 0 Keyboard 1 Movement Numpad Keybinds 0 Fullscreen 1 Font 18/X11 Map View 76x50 Zoom Use 0% Tactical HUD 1 Map Filters NONE Filters NONE Steam 1 RUN: 3ce97460-dad6-4495-8630-0dd9138f2593